fUST/lending_fUST_20240331
["ID","MTS","AMOUNT","RATE_DAILY","PERIOD"]
[321064846,1711852233127,-912.36,0.00038356,4]
[321064847,1711852233137,-502.9560767,0.00038356,4]
[321064848,1711852233146,-504.60531904,0.00038356,4]
[321064849,1711852233157,-151.0,0.00038356,2]
[321064850,1711852233167,-151.0,0.00038356,2]
[321064851,1711852233177,-237.587595,0.00038356,2]
[321064852,1711852233187,-500.0,0.00038356,4]
[321064853,1711852233197,-500.0,0.00038356,4]
[321064854,1711852233207,-870.82,0.00038356,4]
[321064855,1711852233217,-1536.87,0.00038356,4]
[321064856,1711852233228,-500.0,0.00038356,4]
[321064857,1711852233237,-513.94397391,0.00038356,4]
[321064858,1711852233247,-506.57,0.00038356,4]
[321064859,1711852233256,-506.46881321,0.00038356,4]
[321064860,1711852233266,-500.0,0.00038356,4]
[321064861,1711852233276,-18548.66,0.00038356,4]
[321064862,1711852233287,-500.0,0.00038356,4]
[321064863,1711852233297,-504.75580689,0.00038356,4]
[321064864,1711852233307,-1158.53,0.00038356,4]
[321064865,1711852233318,-505.11461202,0.00038356,4]
[321064866,1711852233329,-500.0,0.00038356,4]
[321064867,1711852233340,-500.0,0.00038356,4]
[321064868,1711852233350,-520.38866016,0.00038356,4]
[321064869,1711852233360,-12286.72,0.00038356,4]
[321064870,1711852233371,-2315.39433277,0.00038356,4]
[321064876,1711852238650,-26.95170839,0.00038355,15]
[321064881,1711852240634,333.51513257,0.00036256,2]
[321064883,1711852240680,-473.04829161,0.00038355,15]
[321064884,1711852240689,-98.27067068,0.00038355,15]
[321064887,1711852246437,329.02061142,0.00036869,60]
[321064888,1711852246457,500.0,0.00036869,60]
[321064891,1711852248645,-0.03031854,0.00036869,60]
[321064893,1711852641042,170.3554689,0.0003589,2]
[321064894,1711852991501,-442.171512,0.00036261,120]
[321064895,1711852996257,-24900.0,0.00036202,2]
[321064896,1711852996279,-222.34342171,0.00036256,2]
[321064897,1711852996302,-493.340626,0.00036261,2]
[321064901,1711853145367,442.171512,0.00034102,2]
[321064902,1711853145395,30.15997466,0.00034102,2]
[321064903,1711853306226,656.87700723,0.00033761,2]
[321064904,1711853347153,-622.87,0.00036869,60]
[321064905,1711853366102,-1097.97795151,0.00036869,60]
[321064950,1711853438818,-309.87604958,0.00037,4]
[321064951,1711853438828,-246.670313,0.00037313,2]
[321064952,1711853438837,-500.0,0.00037356,120]
[321064953,1711853438847,-500.0,0.00037356,120]
[321064954,1711853438856,-500.0,0.00037356,120]
[321064955,1711853438866,-500.0,0.00037356,120]
[321064956,1711853438874,-383.13,0.00037356,120]
[321064957,1711853438883,-500.0,0.00037356,120]
[321064958,1711853438893,-6356.11404473,0.00037491,2]
[321064959,1711853438905,-1087.76429987,0.00037491,2]
[321064960,1711853438917,-163.5109555,0.00038255,8]
[321064961,1711853438927,-1000.0,0.00038256,2]
[321064962,1711853438936,-202.37285866,0.00038256,17]
[321064963,1711853438945,-253.32682868,0.00038256,2]
[321064964,1711853438954,-427.0,0.00038355,2]
[321064965,1711853438964,-500.0,0.00038355,15]
[321064966,1711853438973,-500.0,0.00038355,15]
[321064967,1711853438982,-500.0,0.00038355,15]
[321064968,1711853438991,-500.0,0.00038355,15]
[321064969,1711853439000,-500.0,0.00038355,15]
[321064970,1711853439010,-500.0,0.00038355,15]
[321064971,1711853439019,-500.0,0.00038355,15]
[321064972,1711853439028,-500.0,0.00038355,15]
[321064973,1711853439037,-500.0,0.00038355,15]
[321064974,1711853439046,-500.0,0.00038355,15]
[321064975,1711853439055,-500.0,0.00038355,15]
[321064976,1711853439064,-500.0,0.00038355,15]
[321064977,1711853439072,-500.0,0.00038355,15]
[321064978,1711853439081,-500.0,0.00038355,15]
[321064979,1711853439091,-204.75568574,0.00038355,15]
[321064980,1711853439099,-500.0,0.00038355,15]
[321064981,1711853439109,-500.0,0.00038355,15]
[321064982,1711853439118,-500.0,0.00038355,15]
[321064983,1711853439127,-500.0,0.00038355,15]
[321064984,1711853439136,-500.0,0.00038355,15]
[321064985,1711853439145,-500.0,0.00038356,4]
[321064986,1711853439153,-500.0,0.00038356,4]
[321064987,1711853439163,-501.06948472,0.00038356,4]
[321064988,1711853439172,-500.0,0.00038356,4]
[321064989,1711853439182,-501.37252346,0.00038356,4]
[321064990,1711853439192,-501.14420983,0.00038356,4]
[321064991,1711853439202,-446.20445014,0.00038356,4]
[321064992,1711853439212,-501.85778146,0.00038356,4]
[321064993,1711853439227,-500.86750444,0.00038356,4]
[321064994,1711853439237,-504.65293797,0.00038356,4]
[321064995,1711853439247,-504.46894227,0.00038356,4]
[321064996,1711853439258,-500.92948906,0.00038356,4]
[321064997,1711853439269,-501.68341959,0.00038356,4]
[321064998,1711853439279,-506.9071301,0.00038356,4]
[321064999,1711853439290,-486.09716884,0.00038356,4]
[321065000,1711853439301,-501.44768188,0.00038356,4]
[321065001,1711853439311,-787.08,0.00038356,4]
[321065002,1711853439321,-501.62416672,0.00038356,4]
[321065003,1711853439330,-773.25,0.00038356,2]
[321065004,1711853439341,-500.81105745,0.00038356,4]
[321065005,1711853439353,-500.0,0.00038356,4]
[321065006,1711853439365,-501.28182682,0.00038356,4]
[321065007,1711853439374,-500.75488489,0.00038356,4]
[321065008,1711853439384,-294.92281933,0.00038356,4]
[321065009,1711853439394,-1000.0,0.00038356,7]
[321065010,1711853439405,-500.0,0.00038356,4]
[321065011,1711853439414,-500.0,0.00038356,4]
[321065012,1711853439424,-353.90269729,0.00038356,4]
[321065013,1711853439535,-33.99708859,0.00038356,4]
[321065018,1711853444698,-112.10021412,0.00038356,4]
[321065019,1711853444707,-333.72688768,0.00038356,4]
[321065020,1711853444717,-317.76706718,0.00038356,4]
[321065021,1711853444727,-500.0,0.00038356,4]
[321065022,1711853444736,-439.90220259,0.00038356,4]
[321065023,1711853444746,-500.0,0.00038356,4]
[321065024,1711853444756,-500.0,0.00038356,4]
[321065025,1711853444765,-500.0,0.00038356,4]
[321065026,1711853444775,-500.0,0.00038356,4]
[321065027,1711853444783,-500.0,0.00038356,4]
[321065028,1711853444793,-500.0,0.00038356,4]
[321065030,1711853444802,-375.11710594,0.00038356,4]
[321065031,1711853444811,-178.49792309,0.00038356,4]
[321065033,1711853444821,-313.20568721,0.00038356,4]
[321065034,1711853444830,-500.0,0.00038356,4]
[321065035,1711853444839,-500.0,0.00038356,4]
[321065036,1711853444849,-362.10734097,0.00038356,4]
[321065037,1711853444858,-500.0,0.00038356,4]
[321065038,1711853444868,-500.0,0.00038356,4]
[321065039,1711853444877,-538.95248392,0.00038356,4]
[321065040,1711853444886,-500.0,0.00038356,4]
[321065041,1711853444896,-498.59515544,0.00038356,4]
[321065042,1711853444905,-500.0,0.00038356,4]
[321065043,1711853444915,-502.78692528,0.00038356,4]
[321065044,1711853444925,-502.30169378,0.00038356,4]
[321065045,1711853444934,-504.43527604,0.00038356,4]
[321065046,1711853444944,-500.0,0.00038356,4]
[321065047,1711853444953,-500.0,0.00038356,4]
[321065048,1711853444962,-503.56974837,0.00038356,4]
[321065049,1711853444972,-503.16811441,0.00038356,4]
[321065050,1711853444981,-500.0,0.00038356,4]
[321065051,1711853444991,-500.0,0.00038356,4]
[321065052,1711853445000,-874.34,0.00038356,4]
[321065053,1711853445010,-367.13108255,0.00038356,4]
[321065054,1711853445019,-502.61305622,0.00038356,4]
[321065055,1711853445029,-500.0,0.00038356,4]
[321065056,1711853445039,-502.55298625,0.00038356,4]
[321065057,1711853445049,-834.53,0.00038356,4]
[321065058,1711853445058,-500.0,0.00038356,4]
[321065059,1711853445067,-537.66773078,0.00038356,4]
[321065060,1711853445077,-151.0,0.00038356,2]
[321065061,1711853445087,-151.0,0.00038356,2]
[321065062,1711853445097,-151.0,0.00038356,2]
[321065063,1711853445106,-151.0,0.00038356,2]
[321065064,1711853445116,-151.0,0.00038356,2]
[321065065,1711853445125,-251.798217,0.00038356,2]
[321065066,1711853445134,-151.57015103,0.00038356,4]
[321065067,1711853445144,-1472.84,0.00038356,4]
[321065068,1711853445153,-500.0,0.00038356,4]
[321065069,1711853445162,-505.40443727,0.00038356,4]
[321065070,1711853445172,-505.17836708,0.00038356,4]
[321065071,1711853445181,-4203.25,0.00038356,4]
[321065072,1711853445191,-1181.24,0.00038356,4]
[321065073,1711853445200,-1110.25,0.00038356,4]
[321065074,1711853445210,-500.0,0.00038356,4]
[321065075,1711853445224,-502.05825222,0.00038356,4]
[321065076,1711853445235,-1052.64,0.00038356,4]
[321065077,1711853445244,-500.0,0.00038356,4]
[321065078,1711853445253,-506.11,0.00038356,4]
[321065079,1711853445262,-745.13766704,0.00038356,4]
[321065080,1711853445283,-2042.50675677,0.00038356,4]
[321065081,1711853445294,-2156.47235988,0.00038356,4]
[321065082,1711853445306,-6830.66321631,0.00038356,4]
[321065083,1711853445315,-502.19564297,0.00038356,4]
[321065084,1711853445324,-500.0,0.00038356,4]
[321065085,1711853445334,-548.84457098,0.00038356,4]
[321065086,1711853445342,-500.0,0.00038356,4]
[321065087,1711853445352,-500.63252533,0.00038356,4]
[321065088,1711853445361,-500.0,0.00038356,4]
[321065089,1711853445370,-3587.93,0.00038356,4]
[321065090,1711853445379,-500.45756346,0.00038356,4]
[321065091,1711853445388,-1078.35,0.00038356,4]
[321065092,1711853445397,-151.0,0.00038356,2]
[321065093,1711853445406,-151.0,0.00038356,2]
[321065094,1711853445415,-151.0,0.00038356,2]
[321065095,1711853445424,-151.0,0.00038356,2]
[321065096,1711853445433,-151.0,0.00038356,2]
[321065097,1711853445442,-151.0,0.00038356,2]
[321065098,1711853445451,-165.574214,0.00038356,2]
[321065099,1711853445460,-500.28198408,0.00038356,4]
[321065100,1711853445469,-501.15152073,0.00038356,4]
[321065101,1711853445478,-500.0,0.00038356,4]
[321065102,1711853445490,-508.15509378,0.00038356,4]
[321065103,1711853445500,-1018.78,0.00038356,4]
[321065104,1711853445510,-500.0,0.00038356,4]
[321065105,1711853445519,-500.0,0.00038356,2]
[321065106,1711853445529,-528.2,0.00038356,4]
[321065107,1711853445538,-2975.4,0.00038356,4]
[321065108,1711853445550,-892.12,0.00038356,4]
[321065109,1711853445559,-500.0,0.00038356,4]
[321065110,1711853445648,-500.0,0.00038356,4]
[321065111,1711853445660,-1134.75,0.00038356,4]
[321065112,1711853445673,-310.44066584,0.00038356,4]
[321065113,1711853445683,-500.0,0.00038356,4]
[321065114,1711853445693,-500.0,0.00038356,4]
[321065115,1711853445704,-500.0,0.00038356,4]
[321065116,1711853445714,-500.0,0.00038356,4]
[321065117,1711853445726,-4967.62862062,0.00038356,4]
[321065118,1711853447186,314.88765777,0.00036256,2]
[321065119,1711853457449,323.04790497,0.00036869,4]
[321065127,1711854351377,209.92510518,0.00034769,2]
[321065128,1711854549135,-7948.6939908,0.000365,2]
[321065129,1711854549155,-595.8321696,0.00036632,2]
[321065130,1711854549176,-617.77304755,0.000367,2]
[321065131,1711854549196,-356.19316365,0.00036769,2]
[321065132,1711854549217,-163.5109555,0.00036769,8]
[321065133,1711854549238,-24900.0,0.00036778,2]
[321065134,1711854549258,-4976.81875519,0.00036869,4]
[321065200,1711854637951,-331.628634,0.00036891,120]
[321065202,1711854637960,-246.670313,0.00036919,2]
[321065204,1711854637970,-1998.500972,0.00037029,2]
[321065246,1711854640039,-1884.2358403,0.00037029,2]
[321065247,1711854640048,-500.0,0.00037356,120]
[321065248,1711854640057,-399.98,0.00037356,120]
[321065249,1711854640065,-1000.0,0.00038256,2]
[321065250,1711854640074,-500.0,0.00038355,15]
[321065251,1711854640083,-233.23905731,0.00038355,15]
[321065266,1711854643250,-248.721475,0.00037356,120]
[321065267,1711854643260,-345.06713,0.00038355,15]
[321065268,1711854643269,-500.0,0.00038356,4]
[321065269,1711854643279,-500.0,0.00038356,4]
[321065270,1711854643288,-500.0,0.00038356,4]
[321065271,1711854643298,-501.06382033,0.00038356,4]
[321065272,1711854643307,-500.0,0.00038356,4]
[321065273,1711854643317,-412.92321311,0.00038356,4]
[321065274,1711854643326,-500.0,0.00038356,4]
[321065275,1711854643336,-500.0,0.00038356,4]
[321065276,1711854643346,-503.11874479,0.00038356,4]
[321065277,1711854643357,-500.0,0.00038356,4]
[321065278,1711854643367,-500.0,0.00038356,4]
[321065279,1711854643377,-417.31471238,0.00038356,4]
[321065280,1711854643386,-500.0,0.00038356,4]
[321065281,1711854643395,-501.02574191,0.00038356,4]
[321065282,1711854643405,-182.76340811,0.00038356,4]
[321065283,1711854643414,-500.0,0.00038356,4]
[321065284,1711854643423,-500.0,0.00038356,4]
[321065285,1711854643432,-500.0,0.00038356,4]
[321065286,1711854643442,-500.0,0.00038356,4]
[321065287,1711854643451,-500.0,0.00038356,4]
[321065288,1711854643460,-500.0,0.00038356,4]
[321065289,1711854643470,-152.563465,0.00038356,2]
[321065290,1711854643479,-500.0,0.00038356,4]
[321065291,1711854643488,-273.7702853,0.00038356,4]
[321065292,1711854643497,-501.09983592,0.00038356,4]
[321065293,1711854643506,-501.08568129,0.00038356,4]
[321065294,1711854643600,-500.0,0.00038356,4]
[321065295,1711854643614,-500.0,0.00038356,4]
[321065296,1711854643624,-500.0,0.00038356,4]
[321065297,1711854643633,-500.0,0.00038356,4]
[321065298,1711854643643,-503.70308071,0.00038356,4]
[321065299,1711854643652,-501.81196488,0.00038356,4]
[321065300,1711854643660,-500.0,0.00038356,4]
[321065301,1711854643669,-503.55812541,0.00038356,4]
[321065302,1711854643679,-500.0,0.00038356,4]
[321065303,1711854643688,-500.0,0.00038356,4]
[321065304,1711854643697,-151.0,0.00038356,2]
[321065305,1711854643706,-151.0,0.00038356,2]
[321065306,1711854643715,-151.0,0.00038356,2]
[321065307,1711854643725,-500.0,0.00038356,4]
[321065308,1711854643735,-504.88539883,0.00038356,4]
[321065309,1711854643745,-837.91,0.00038356,4]
[321065310,1711854643754,-500.0,0.00038356,4]
[321065311,1711854643765,-500.0,0.00038356,4]
[321065312,1711854643774,-505.93907844,0.00038356,4]
[321065313,1711854643783,-799.76,0.00038356,4]
[321065314,1711854643793,-151.0,0.00038356,2]
[321065315,1711854643806,-163.564887,0.00038356,2]
[321065316,1711854643814,-503.29144581,0.00038356,4]
[321065317,1711854643823,-1411.47,0.00038356,4]
[321065318,1711854643833,-500.0,0.00038356,4]
[321065319,1711854643842,-524.77,0.00038356,4]
[321065320,1711854643851,-284.213223,0.00038356,2]
[321065321,1711854643860,-284.213223,0.00038356,2]
[321065322,1711854643869,-284.213223,0.00038356,2]
[321065323,1711854643879,-284.213223,0.00038356,2]
[321065324,1711854643890,-284.213223,0.00038356,2]
[321065325,1711854643900,-284.213223,0.00038356,2]
[321065326,1711854643910,-284.213223,0.00038356,2]
[321065327,1711854643920,-284.213223,0.00038356,2]
[321065328,1711854643929,-1132.02,0.00038356,4]
[321065329,1711854643939,-502.12213515,0.00038356,4]
[321065330,1711854643948,-500.0,0.00038356,4]
[321065331,1711854643957,-11284.16,0.00038356,4]
[321065332,1711854643966,-151.0,0.00038356,2]
[321065333,1711854643976,-151.0,0.00038356,2]
[321065334,1711854643985,-151.0,0.00038356,2]
[321065335,1711854643994,-151.0,0.00038356,2]
[321065336,1711854644004,-1008.78,0.00038356,4]
[321065337,1711854644014,-500.0,0.00038356,4]
[321065338,1711854644023,-240.37722158,0.00038356,4]
[321065339,1711854644032,-500.0,0.00038356,4]
[321065340,1711854644041,-500.0,0.00038356,4]
[321065341,1711854644050,-3438.43,0.00038356,4]
[321065342,1711854644059,-151.0,0.00038356,2]
[321065343,1711854644068,-151.0,0.00038356,2]
[321065344,1711854644078,-151.0,0.00038356,2]
[321065345,1711854644088,-1033.42,0.00038356,4]
[321065346,1711854644099,-500.0,0.00038356,4]
[321065347,1711854644110,-976.33,0.00038356,4]
[321065348,1711854644119,-503.5228271,0.00038356,4]
[321065349,1711854644128,-506.19,0.00038356,4]
[321065350,1711854644137,-2851.43,0.00038356,4]
[321065351,1711854644147,-500.0,0.00038356,2]
[321065352,1711854644156,-500.0,0.00038356,4]
[321065353,1711854644166,-854.95,0.00038356,4]
[321065354,1711854644175,-1087.47,0.00038356,4]
[321065355,1711854644184,-165.21739271,0.00038356,4]
[321065356,1711854644193,-501.92539107,0.00038356,4]
[321065357,1711854644202,-502.30887743,0.00038356,4]
[321065358,1711854644211,-500.0,0.00038356,4]
[321065359,1711854644220,-500.0,0.00038356,4]
[321065360,1711854644229,-464.46571045,0.00038356,4]
[321065361,1711854644238,-754.28,0.00038356,4]
[321065362,1711854644246,-500.0,0.00038356,4]
[321065363,1711854644255,-2170.03672977,0.00038356,4]
[321065403,1711854652575,150.0,0.00036256,2]
[321065404,1711854665107,472.87,0.00036,2]
[321065405,1711854665128,298.22680936,0.00036,2]
[321065406,1711854665149,635.62704737,0.00036,2]
[321065407,1711854665170,551.43407015,0.00036,2]
[321065408,1711854665190,640.2233364,0.00036,2]
[321065409,1711854665211,659.69058548,0.00036,2]
[321065410,1711855557449,187.91643486,0.000339,2]
[321065425,1711855745134,-1102.16533842,0.00036,2]
[321065989,1711855841459,-186.541106,0.00037323,120]
[321065991,1711855841469,-168.88455246,0.00038256,2]
[321065993,1711855841478,-281.48373296,0.00038356,4]
[321065995,1711855841487,-501.89907426,0.00038356,4]
[321065997,1711855841496,-500.0,0.00038356,4]
[321065999,1711855841505,-500.0,0.00038356,4]
[321066001,1711855841514,-500.0,0.00038356,4]
[321066003,1711855841523,-503.47638177,0.00038356,4]
[321066005,1711855841532,-254.75716014,0.00038356,4]
[321066007,1711855841541,-490.51279071,0.00038356,4]
[321066008,1711855841551,-500.0,0.00038356,4]
[321066010,1711855841561,-27.30138232,0.00038356,4]
[321066110,1711855843364,-472.69861768,0.00038356,4]
[321066111,1711855843373,-500.0,0.00038356,4]
[321066112,1711855843382,-500.0,0.00038356,4]
[321066113,1711855843391,-500.0,0.00038356,4]
[321066114,1711855843399,-500.0,0.00038356,4]
[321066115,1711855843408,-500.0,0.00038356,4]
[321066116,1711855843417,-500.0,0.00038356,4]
[321066117,1711855843426,-423.89103325,0.00038356,4]
[321066118,1711855843435,-500.0,0.00038356,4]
[321066119,1711855843443,-500.0,0.00038356,4]
[321066120,1711855843452,-500.0,0.00038356,4]
[321066121,1711855843461,-615.44442593,0.00038356,4]
[321066122,1711855843470,-722.86,0.00038356,4]
[321066123,1711855843479,-500.0,0.00038356,4]
[321066124,1711855843488,-741.04,0.00038356,2]
[321066125,1711855843497,-803.0,0.00038356,4]
[321066126,1711855843507,-500.0,0.00038356,4]
[321066127,1711855843516,-500.0,0.00038356,4]
[321066128,1711855843525,-766.44,0.00038356,4]
[321066129,1711855843535,-1352.66,0.00038356,4]
[321066130,1711855843543,-294.2767977,0.00038356,4]
[321066131,1711855843553,-500.0,0.00038356,4]
[321066132,1711855843563,-502.91,0.00038356,4]
[321066134,1711855843572,-966.74,0.00038356,4]
[321066136,1711855843581,-1084.85,0.00038356,4]
[321066137,1711855843590,-500.0,0.00038356,4]
[321066138,1711855843600,-500.0,0.00038356,4]
[321066139,1711855843609,-4555.49402066,0.00038356,4]
[321066151,1711855858750,150.0,0.00036256,2]
[321066152,1711855936722,344.11444634,0.00036256,2]
[321066153,1711856736154,-605.94885932,0.00036,15]
[321066154,1711856763127,150.0,0.00034156,2]
[321066156,1711856826101,-155.88555366,0.00036,15]
[321066157,1711856838104,-657.00840249,0.00036,15]
[321066158,1711856846096,-600.34599529,0.00036,15]
[321066159,1711856853095,-461.68,0.00036,15]
[321066160,1711856854119,-94.50217953,0.00036,15]
[321066161,1711856854143,-156.26232289,0.00036256,2]
[321066162,1711856854163,-382.69439128,0.00037052,4]
[321066221,1711857032356,-50.83777232,0.00037052,4]
[321066222,1711857032366,-200.0,0.00037063,2]
[321066223,1711857032375,-197.85953,0.00037323,120]
[321066224,1711857032385,-573.19,0.00037356,120]
[321066225,1711857032394,-165.04754189,0.00037972,2]
[321066226,1711857032403,-400.0,0.00037999,3]
[321066227,1711857032412,-466.66265917,0.00038,2]
[321066228,1711857032423,-948.33734083,0.00038,2]
[321066229,1711857032433,-206.3268245,0.00038,2]
[321066230,1711857032442,-148.23723371,0.00038,4]
[321066270,1711857038375,-1504.99461413,0.00038,4]
[321066478,1711857040326,-6346.76815216,0.00038,4]
[321066480,1711857040335,-6305.16367678,0.00038,3]
[321066482,1711857040344,-150.395,0.00038253,2]
[321066484,1711857040353,-221.225,0.00038253,2]
[321066486,1711857040362,-163.5109555,0.00038256,8]
[321066488,1711857040371,-202.21811,0.00038274,2]
[321066489,1711857040380,-153.0,0.00038274,2]
[321066491,1711857040389,-1973.96932874,0.0003828,15]
[321066493,1711857040398,-1900.0,0.0003828,60]
[321066495,1711857040407,-4617.12775145,0.0003831,120]
[321066497,1711857040416,-209.42155641,0.00038343,2]
[321066499,1711857040425,-321.74717806,0.00038355,15]
[321066501,1711857040434,-317.62856993,0.00038355,15]
[321066503,1711857040442,-500.31126533,0.00038356,4]
[321066505,1711857040451,-500.0,0.00038356,4]
[321066507,1711857040460,-500.0,0.00038356,4]
[321066509,1711857040469,-692.74,0.00038356,4]
[321066511,1711857040478,-773.61,0.00038356,2]
[321066513,1711857040487,-342.09031537,0.00038356,4]
[321066514,1711857040496,-500.0,0.00038356,4]
[321066516,1711857040506,-500.0,0.00038356,4]
[321066518,1711857040515,-500.0,0.00038356,4]
[321066520,1711857040524,-500.0,0.00038356,4]
[321066522,1711857040533,-500.0,0.00038356,4]
[321066524,1711857040543,-500.0,0.00038356,4]
[321066535,1711857040643,-500.0,0.00038356,4]
[321066537,1711857040656,-292.07195925,0.00038356,4]
[321066539,1711857040666,-500.0,0.00038356,4]
[321066541,1711857040675,-423.57555338,0.00038356,4]
[321066543,1711857040685,-500.0,0.00038356,4]
[321066545,1711857040694,-500.0,0.00038356,4]
[321066547,1711857040703,-500.0,0.00038356,4]
[321066549,1711857040713,-500.0,0.00038356,4]
[321066551,1711857040722,-164.796136,0.00038356,2]
[321066553,1711857040731,-504.31736259,0.00038356,4]
[321066555,1711857040740,-500.0,0.00038356,4]
[321066557,1711857040749,-500.0,0.00038356,4]
[321066559,1711857040758,-836.0,0.00038356,4]
[321066561,1711857040767,-500.0,0.00038356,4]
[321066562,1711857040776,-151.0,0.00038356,2]
[321066564,1711857040785,-734.5,0.00038356,4]
[321066566,1711857040795,-1296.3,0.00038356,4]
[321066568,1711857040804,-500.0,0.00038356,4]
[321066570,1711857040813,-500.0,0.00038356,4]
[321066572,1711857040824,-503.49803781,0.00038356,4]
[321066574,1711857040833,-151.0,0.00038356,2]
[321066576,1711857040842,-153.662269,0.00038356,2]
[321066578,1711857040851,-4028.12,0.00038356,4]
[321066580,1711857040859,-1063.99,0.00038356,4]
[321066582,1711857040870,-503.34209712,0.00038356,4]
[321066584,1711857040878,-926.46,0.00038356,4]
[321066586,1711857040887,-11940.12,0.00038356,4]
[321066588,1711857040896,-1070.18,0.00038356,4]
[321066590,1711857040905,-151.0,0.00038356,2]
[321066592,1711857040914,-151.0,0.00038356,2]
[321066593,1711857040923,-169.771076,0.00038356,2]
[321066595,1711857040932,-500.0,0.00038356,4]
[321066597,1711857040941,-1039.65,0.00038356,4]
[321066599,1711857040950,-507.91826491,0.00038356,4]
[321066601,1711857040959,-3295.16,0.00038356,4]
[321066603,1711857040967,-500.0,0.00038356,4]
[321066605,1711857040977,-500.0,0.00038356,4]
[321066607,1711857040986,-170.527934,0.00038356,2]
[321066609,1711857040995,-170.527934,0.00038356,2]
[321066611,1711857041006,-636.70004995,0.00038356,4]
[321066613,1711857041015,-170.527934,0.00038356,2]
[321066615,1711857041024,-170.527934,0.00038356,2]
[321066617,1711857041034,-500.0,0.00038356,4]
[321066619,1711857041043,-151.0,0.00038356,2]
[321066621,1711857041052,-151.0,0.00038356,2]
[321066623,1711857041061,-935.65,0.00038356,4]
[321066625,1711857041070,-3017.96,0.00038356,4]
[321066627,1711857041079,-500.0,0.00038356,4]
[321066629,1711857041089,-500.0,0.00038356,4]
[321066630,1711857041098,-1115.44,0.00038356,4]
[321066632,1711857041106,-500.0,0.00038356,2]
[321066634,1711857041115,-153.14537961,0.00038356,4]
[321066636,1711857041124,-819.32,0.00038356,4]
[321066638,1711857041134,-501.88789161,0.00038356,4]
[321066640,1711857041143,-500.0,0.00038356,4]
[321066642,1711857041151,-500.0,0.00038356,4]
[321066644,1711857041160,-500.0,0.00038356,4]
[321066646,1711857041169,-6037.98,0.00038356,4]
[321066648,1711857041179,-504.51161417,0.00038356,4]
[321066650,1711857041188,-500.0,0.00038356,4]
[321066652,1711857041197,-2385.81,0.00038356,4]
[321066654,1711857041206,-2195.41,0.00038356,4]
[321066655,1711857041215,-500.0,0.00038356,4]
[321066657,1711857041224,-500.0,0.00038356,4]
[321066659,1711857041233,-500.0,0.00038356,4]
[321066661,1711857041243,-1128.09,0.00038356,4]
[321066663,1711857041252,-500.0,0.00038356,4]
[321066665,1711857041261,-154.98450155,0.00038356,4]
[321066667,1711857041272,-1000.0,0.00038356,7]
[321066669,1711857041281,-569.68,0.00038356,4]
[321066671,1711857041290,-1019.47,0.00038356,4]
[321066673,1711857041299,-500.0,0.00038356,4]
[321066675,1711857041308,-504.20254618,0.00038356,4]
[321066677,1711857041317,-500.0,0.00038356,4]
[321066679,1711857041326,-500.0,0.00038356,4]
[321066681,1711857041335,-500.0,0.00038356,4]
[321066683,1711857041344,-500.0,0.00038356,4]
[321066684,1711857041354,-503.77292671,0.00038356,4]
[321066686,1711857041363,-500.0,0.00038356,4]
[321066687,1711857041372,-17775.8,0.00038356,4]
[321066688,1711857041381,-501.86374136,0.00038356,4]
[321066689,1711857041390,-500.0,0.00038356,4]
[321066690,1711857041399,-262.73443644,0.00038356,4]